fUSD/lending_fUSD_20250623
["ID","MTS","AMOUNT","RATE_DAILY","PERIOD"]
[367258555,1750720271227,-151.0,0.00022739,7]
[367258556,1750720271237,-151.0,0.00022739,7]
[367258557,1750720271248,-150.0,0.00022739,2]
[367258558,1750720271257,-490.0,0.00022739,2]
[367258559,1750720271268,-173.497866,0.00022739,7]
[367258560,1750720271279,-490.0,0.00022739,2]
[367258561,1750720271289,-589.97,0.00022739,2]
[367258562,1750720271300,-490.0,0.00022739,2]
[367258563,1750720271310,-317.67350252,0.00022739,2]
[367258564,1750720271321,-490.0,0.00022739,2]
[367258565,1750720271331,-490.0,0.00022739,2]
[367258566,1750720271340,-455.94560774,0.00022739,2]
[367258567,1750720271350,-490.0,0.00022739,2]
[367258568,1750720271359,-490.0,0.00022739,2]
[367258569,1750720271369,-743.05,0.00022739,2]
[367258570,1750720271379,-490.0,0.00022739,2]
[367258571,1750720271388,-538.01,0.00022739,2]
[367258572,1750720271399,-693.79,0.00022739,2]
[367258573,1750720271408,-490.0,0.00022739,2]
[367258574,1750720271418,-490.0,0.00022739,2]
[367258575,1750720271429,-490.0,0.00022739,2]
[367258576,1750720271438,-490.0,0.00022739,2]
[367258577,1750720271448,-490.0,0.00022739,2]
[367258578,1750720271458,-793.15,0.00022739,2]
[367258579,1750720271467,-608.3,0.00022739,2]
[367258580,1750720271477,-250.0,0.00022739,2]
[367258581,1750720271488,-610.99,0.00022739,2]
[367258582,1750720271499,-562.21194479,0.00022739,2]
[367258583,1750720271510,-490.0,0.00022739,2]
[367258584,1750720271520,-490.0,0.00022739,2]
[367258585,1750720271530,-698.55,0.00022739,2]
[367258586,1750720271540,-500.02,0.00022739,2]
[367258587,1750720271550,-490.0,0.00022739,2]
[367258588,1750720271560,-917.55,0.00022739,2]
[367258589,1750720271573,-812.47,0.00022739,2]
[367258590,1750720271583,-490.0,0.00022739,2]
[367258591,1750720271593,-637.003955,0.00022739,2]
[367258592,1750720271602,-490.0,0.00022739,2]
[367258593,1750720271612,-490.0,0.00022739,2]
[367258594,1750720271622,-759.24,0.00022739,2]
[367258595,1750720271632,-545.58,0.00022739,2]
[367258596,1750720271643,-840.98,0.00022739,2]
[367258597,1750720271653,-490.0,0.00022739,2]
[367258598,1750720271663,-288.22497448,0.00022739,2]
[367258599,1750720271673,-1083.75,0.00022739,2]
[367258600,1750720271682,-490.0,0.00022739,2]
[367258601,1750720271692,-490.0,0.00022739,2]
[367258602,1750720271702,-676.91,0.00022739,2]
[367258603,1750720271712,-827.47,0.00022739,2]
[367258604,1750720271722,-490.0,0.00022739,2]
[367258605,1750720271732,-554.99,0.00022739,2]
[367258606,1750720271742,-628.72,0.00022739,2]
[367258607,1750720271752,-496.80802839,0.00022739,2]
[367258608,1750720271762,-1200.9,0.00022739,2]
[367258609,1750720271772,-574.5,0.00022739,2]
[367258610,1750720271783,-151.0,0.00022739,7]
[367258611,1750720271794,-622.34,0.00022739,2]
[367258612,1750720271804,-151.0,0.00022739,7]
[367258613,1750720271814,-490.0,0.00022739,2]
[367258614,1750720271825,-490.0,0.00022739,2]
[367258615,1750720271836,-490.0,0.00022739,2]
[367258616,1750720271846,-538.21,0.00022739,2]
[367258617,1750720271856,-971.79,0.00022739,2]
[367258618,1750720271866,-490.0,0.00022739,2]
[367258619,1750720271876,-1028.56,0.00022739,2]
[367258620,1750720271886,-490.0,0.00022739,2]
[367258621,1750720271897,-490.0,0.00022739,2]
[367258622,1750720271907,-490.0,0.00022739,2]
[367258623,1750720271917,-490.0,0.00022739,2]
[367258624,1750720271927,-490.0,0.00022739,2]
[367258625,1750720271941,-545.47,0.00022739,2]
[367258626,1750720271952,-1263.38,0.00022739,2]
[367258627,1750720271963,-505.37,0.00022739,2]
[367258628,1750720271973,-490.0,0.00022739,2]
[367258629,1750720271982,-688.47,0.00022739,2]
[367258630,1750720271992,-816.17,0.00022739,2]
[367258631,1750720272001,-490.0,0.00022739,2]
[367258632,1750720272011,-610.98,0.00022739,2]
[367258633,1750720272021,-490.0,0.00022739,2]
[367258634,1750720272031,-511.19,0.00022739,2]
[367258635,1750720272040,-756.92,0.00022739,2]
[367258636,1750720272049,-1422.61,0.00022739,2]
[367258637,1750720272059,-490.0,0.00022739,2]
[367258638,1750720272069,-712.06,0.00022739,2]
[367258639,1750720272079,-544.78,0.00022739,2]
[367258640,1750720272089,-797.95,0.00022739,2]
[367258641,1750720272099,-798.42,0.00022739,2]
[367258642,1750720272109,-490.0,0.00022739,2]
[367258643,1750720272119,-490.0,0.00022739,2]
[367258644,1750720272129,-490.0,0.00022739,2]
[367258645,1750720272140,-948.64,0.00022739,2]
[367258646,1750720272151,-723.12,0.00022739,2]
[367258647,1750720272162,-490.0,0.00022739,2]
[367258648,1750720272172,-490.0,0.00022739,2]
[367258649,1750720272182,-490.0,0.00022739,2]
[367258650,1750720272191,-151.0,0.00022739,7]
[367258651,1750720272202,-151.0,0.00022739,7]
[367258652,1750720272211,-490.0,0.00022739,2]
[367258653,1750720272222,-490.0,0.00022739,2]
[367258654,1750720272232,-547.15,0.00022739,2]
[367258655,1750720272242,-490.0,0.00022739,2]
[367258656,1750720272252,-490.0,0.00022739,2]
[367258657,1750720272263,-400.73683735,0.00022739,2]
[367258658,1750720272272,-664.8,0.00022739,2]
[367258659,1750720272283,-490.0,0.00022739,2]
[367258660,1750720272292,-490.0,0.00022739,2]
[367258661,1750720272302,-494.01,0.00022739,2]
[367258662,1750720272312,-490.0,0.00022739,2]
[367258663,1750720272322,-765.15,0.00022739,2]
[367258664,1750720272332,-498.85,0.00022739,2]
[367258665,1750720272342,-490.0,0.00022739,2]
[367258666,1750720272352,-490.0,0.00022739,2]
[367258667,1750720272361,-490.0,0.00022739,2]
[367258668,1750720272371,-193.47,0.00022739,2]
[367258669,1750720272381,-490.0,0.00022739,2]
[367258670,1750720272392,-603.64,0.00022739,2]
[367258671,1750720272401,-1024.07,0.00022739,2]
[367258672,1750720272411,-490.0,0.00022739,2]
[367258673,1750720272421,-1147.26,0.00022739,2]
[367258674,1750720272431,-490.0,0.00022739,2]
[367258675,1750720272440,-490.0,0.00022739,2]
[367258676,1750720272450,-490.0,0.00022739,2]
[367258677,1750720272460,-1174.91,0.00022739,2]
[367258678,1750720272470,-1295.03,0.00022739,2]
[367258679,1750720272480,-490.0,0.00022739,2]
[367258680,1750720272490,-1105.76,0.00022739,2]
[367258681,1750720272501,-490.0,0.00022739,2]
[367258682,1750720272510,-490.0,0.00022739,2]
[367258683,1750720272520,-850.78,0.00022739,2]
[367258684,1750720272530,-490.0,0.00022739,2]
[367258685,1750720272540,-490.0,0.00022739,2]
[367258686,1750720272550,-256.18010037,0.00022739,2]
[367258687,1750720272560,-602.16,0.00022739,2]
[367258688,1750720272569,-490.0,0.00022739,2]
[367258689,1750720272579,-490.0,0.00022739,2]
[367258690,1750720272590,-490.0,0.00022739,2]
[367258691,1750720272600,-490.0,0.00022739,2]
[367258692,1750720272610,-670.97,0.00022739,2]
[367258693,1750720272620,-1125.48,0.00022739,2]
[367258694,1750720272630,-490.0,0.00022739,2]
[367258695,1750720272640,-1015.98,0.00022739,2]
[367258696,1750720272650,-490.0,0.00022739,2]
[367258697,1750720272659,-896.78,0.00022739,2]
[367258698,1750720272669,-991.79,0.00022739,2]
[367258699,1750720272679,-490.0,0.00022739,2]
[367258700,1750720272689,-490.0,0.00022739,2]
[367258701,1750720272699,-490.0,0.00022739,2]
[367258702,1750720272710,-617.71,0.00022739,2]
[367258703,1750720272984,-490.0,0.00022739,2]
[367258704,1750720273001,-490.0,0.00022739,2]
[367258705,1750720273011,-663.55,0.00022739,2]
[367258706,1750720273020,-490.0,0.00022739,2]
[367258707,1750720273030,-753.16,0.00022739,2]
[367258708,1750720273039,-1169.56,0.00022739,2]
[367258709,1750720273048,-490.0,0.00022739,2]
[367258710,1750720273058,-490.0,0.00022739,2]
[367258711,1750720273068,-798.85,0.00022739,2]
[367258712,1750720273077,-816.02,0.00022739,2]
[367258713,1750720273086,-319.33061695,0.00022739,2]
[367258714,1750720273095,-1226.43,0.00022739,2]
[367258715,1750720273105,-1692.03,0.00022739,2]
[367258716,1750720273114,-490.0,0.00022739,2]
[367258717,1750720273123,-743.41,0.00022739,2]
[367258718,1750720273133,-490.0,0.00022739,2]
[367258719,1750720273142,-490.0,0.00022739,2]
[367258720,1750720273152,-490.0,0.00022739,2]
[367258721,1750720273161,-1035.5,0.00022739,2]
[367258722,1750720273170,-1428.24,0.00022739,2]
[367258723,1750720273179,-490.0,0.00022739,2]
[367258724,1750720273189,-578.07,0.00022739,2]
[367258725,1750720273199,-490.0,0.00022739,2]
[367258726,1750720273209,-490.0,0.00022739,2]
[367258727,1750720273219,-1560.27,0.00022739,2]
[367258728,1750720273231,-490.0,0.00022739,2]
[367258729,1750720273241,-490.0,0.00022739,2]
[367258730,1750720273253,-490.0,0.00022739,2]
[367258731,1750720273263,-1138.31,0.00022739,2]
[367258732,1750720273272,-490.0,0.00022739,2]
[367258733,1750720273282,-490.0,0.00022739,2]
[367258734,1750720273291,-490.0,0.00022739,2]
[367258735,1750720273300,-490.0,0.00022739,2]
[367258736,1750720273311,-230.88,0.00022739,2]
[367258737,1750720273322,-610.23,0.00022739,2]
[367258738,1750720273332,-490.0,0.00022739,2]
[367258739,1750720273342,-490.0,0.00022739,2]
[367258740,1750720273352,-1540.72,0.00022739,2]
[367258741,1750720273363,-490.0,0.00022739,2]
[367258742,1750720273375,-956.42,0.00022739,2]
[367258743,1750720273384,-490.0,0.00022739,2]
[367258744,1750720273395,-490.0,0.00022739,2]
[367258745,1750720273404,-755.88,0.00022739,2]
[367258746,1750720273414,-490.0,0.00022739,2]
[367258747,1750720273423,-510.44,0.00022739,2]
[367258748,1750720273435,-490.0,0.00022739,2]
[367258749,1750720273447,-490.0,0.00022739,2]
[367258750,1750720273458,-490.0,0.00022739,2]
[367258751,1750720273469,-643.85,0.00022739,2]
[367258752,1750720273479,-599.74,0.00022739,2]
[367258753,1750720273490,-490.0,0.00022739,2]
[367258754,1750720273500,-710.51,0.00022739,2]
[367258755,1750720273512,-490.0,0.00022739,2]
[367258756,1750720273521,-291.7083233,0.00022739,2]
[367258757,1750720273530,-490.0,0.00022739,2]
[367258758,1750720273539,-749.42,0.00022739,2]
[367258759,1750720273548,-490.0,0.00022739,2]
[367258760,1750720273558,-490.0,0.00022739,2]
[367258761,1750720273568,-917.23,0.00022739,2]
[367258762,1750720273577,-599.32,0.00022739,2]
[367258763,1750720273587,-490.0,0.00022739,2]
[367258764,1750720273596,-720.89,0.00022739,2]
[367258765,1750720273605,-664.28,0.00022739,2]
[367258766,1750720273614,-1380.1,0.00022739,2]
[367258767,1750720273624,-490.0,0.00022739,2]
[367258768,1750720273634,-912.94,0.00022739,2]
[367258769,1750720273643,-490.0,0.00022739,2]
[367258770,1750720273653,-490.0,0.00022739,2]
[367258771,1750720273662,-583.16,0.00022739,2]
[367258772,1750720273672,-1214.44,0.00022739,2]
[367258773,1750720273682,-490.0,0.00022739,2]
[367258774,1750720273691,-490.0,0.00022739,2]
[367258775,1750720273701,-1030.72,0.00022739,2]
[367258776,1750720273710,-602.99,0.00022739,2]
[367258777,1750720273719,-490.0,0.00022739,2]
[367258778,1750720273729,-490.0,0.00022739,2]
[367258779,1750720273739,-151.0,0.00022739,7]
[367258780,1750720273748,-151.0,0.00022739,7]
[367258781,1750720273758,-490.0,0.00022739,2]
[367258782,1750720273767,-592.75,0.00022739,2]
[367258783,1750720273776,-917.93,0.00022739,2]
[367258784,1750720273786,-940.21,0.00022739,2]
[367258785,1750720273795,-490.0,0.00022739,2]
[367258786,1750720273805,-573.90081534,0.00022739,2]
[367258787,1750720273814,-490.0,0.00022739,2]
[367258788,1750720273824,-1267.09,0.00022739,2]
[367258789,1750720273834,-490.0,0.00022739,2]
[367258790,1750720273843,-490.0,0.00022739,2]
[367258791,1750720273853,-490.0,0.00022739,2]
[367258792,1750720273863,-761.58,0.00022739,2]
[367258793,1750720273872,-490.0,0.00022739,2]
[367258794,1750720273881,-1017.08,0.00022739,2]
[367258795,1750720273891,-613.73,0.00022739,2]
[367258796,1750720273901,-490.0,0.00022739,2]
[367258797,1750720273911,-694.19,0.00022739,2]
[367258798,1750720273920,-490.0,0.00022739,2]
[367258799,1750720273929,-897.84,0.00022739,2]
[367258800,1750720273942,-301.084243,0.00022739,7]
[367258801,1750720273951,-982.43,0.00022739,2]
[367258802,1750720273961,-490.0,0.00022739,2]
[367258803,1750720273970,-490.0,0.00022739,2]
[367258804,1750720273980,-760.55,0.00022739,2]
[367258805,1750720273990,-490.0,0.00022739,2]
[367258806,1750720273999,-1819.88,0.00022739,2]
[367258807,1750720274009,-490.0,0.00022739,2]
[367258808,1750720274018,-669.64,0.00022739,2]
[367258809,1750720274027,-490.0,0.00022739,2]
[367258810,1750720274037,-490.0,0.00022739,2]
[367258811,1750720274047,-437.04,0.00022739,2]
[367258812,1750720274056,-644.61,0.00022739,2]
[367258813,1750720274065,-490.0,0.00022739,2]
[367258814,1750720274075,-490.0,0.00022739,2]
[367258815,1750720274084,-1824.55,0.00022739,2]
[367258816,1750720274094,-718.38,0.00022739,2]
[367258817,1750720274103,-963.57,0.00022739,2]
[367258818,1750720274113,-536.46,0.00022739,2]
[367258819,1750720274122,-490.0,0.00022739,2]
[367258820,1750720274132,-490.0,0.00022739,2]
[367258821,1750720274141,-2293.31,0.00022739,2]
[367258822,1750720274152,-490.0,0.00022739,2]
[367258823,1750720274162,-1489.68,0.00022739,2]
[367258824,1750720274171,-646.41,0.00022739,2]
[367258825,1750720274181,-527.44461191,0.00022739,2]
[367258826,1750720274190,-2805.91,0.00022739,2]
[367258827,1750720274200,-1394.63,0.00022739,2]
[367258828,1750720274210,-2616.36,0.00022739,2]
[367258829,1750720274219,-490.0,0.00022739,2]
[367258830,1750720274229,-638.23,0.00022739,2]
[367258831,1750720274238,-500.0,0.00022739,2]
[367258832,1750720274247,-497.04,0.00022739,2]
[367258833,1750720274257,-831.27,0.00022739,2]
[367258834,1750720274267,-769.28,0.00022739,2]
[367258835,1750720274276,-3452.29,0.00022739,2]
[367258836,1750720274285,-150.0,0.00022739,2]
[367258837,1750720274295,-581.2,0.00022739,2]
[367258838,1750720274304,-9399.59,0.00022739,2]
[367258839,1750720274315,-152.42118309,0.00022739,2]
[367258840,1750720274325,-500.0,0.00022739,2]
[367258841,1750720274335,-710.04,0.00022739,2]
[367258842,1750720274344,-490.0,0.00022739,2]
[367258843,1750720274355,-150.0,0.00022739,2]
[367258844,1750720274367,-1061.59,0.00022739,2]
[367258845,1750720274376,-500.0,0.00022739,2]
[367258846,1750720274386,-490.0,0.00022739,2]
[367258847,1750720274395,-947.34,0.00022739,2]
[367258848,1750720274404,-500.0,0.00022739,2]
[367258849,1750720274414,-1026.38,0.00022739,2]
[367258850,1750720274423,-500.0,0.00022739,2]
[367258851,1750720274433,-490.0,0.00022739,2]
[367258852,1750720274442,-726.73,0.00022739,2]
[367258853,1750720274452,-1802.18,0.00022739,2]
[367258854,1750720274461,-1184.26,0.00022739,2]
[367258855,1750720274471,-792.98,0.00022739,2]
[367258856,1750720274480,-500.0,0.00022739,2]
[367258857,1750720274490,-1150.8,0.00022739,2]
[367258858,1750720274499,-930.74,0.00022739,2]
[367258859,1750720274509,-500.0,0.00022739,2]
[367258860,1750720274518,-605.1,0.00022739,2]
[367258861,1750720274527,-150.0,0.00022739,2]
[367258862,1750720274537,-150.9252672,0.00022739,2]
[367258863,1750720274547,-863.73,0.00022739,2]
[367258864,1750720274556,-4136.86,0.00022739,2]
[367258865,1750720274566,-500.0,0.00022739,2]
[367258866,1750720274576,-490.0,0.00022739,2]
[367258867,1750720274585,-538.91,0.00022739,2]
[367258868,1750720274594,-657.58,0.00022739,2]
[367258869,1750720274603,-2102.05,0.00022739,2]
[367258870,1750720274613,-914.31,0.00022739,2]
[367258871,1750720274623,-870.44,0.00022739,2]
[367258872,1750720274633,-500.0,0.00022739,2]
[367258873,1750720274642,-490.0,0.00022739,2]
[367258874,1750720274653,-150.0,0.00022739,2]
[367258875,1750720274662,-500.0,0.00022739,2]
[367258876,1750720274672,-2161.05,0.00022739,2]
[367258877,1750720274682,-598.29,0.00022739,2]
[367258878,1750720274692,-1160.51,0.00022739,2]
[367258879,1750720274702,-1075.55,0.00022739,2]
[367258880,1750720274712,-5318.79,0.00022739,2]
[367258881,1750720274721,-4925.64,0.00022739,2]
[367258882,1750720274731,-690.98,0.00022739,2]
[367258883,1750720274740,-2160.42,0.00022739,2]
[367258884,1750720274749,-582.65,0.00022739,2]
[367258885,1750720274758,-490.0,0.00022739,2]
[367258886,1750720274768,-150.32771533,0.00022739,2]
[367258887,1750720274777,-596.44,0.00022739,2]
[367258888,1750720274787,-150.0,0.00022739,2]
[367258889,1750720274796,-151.0,0.00022739,7]
[367258890,1750720274806,-241.729068,0.00022739,7]
[367258891,1750720274815,-500.0,0.00022739,2]
[367258892,1750720274825,-2330.86,0.00022739,2]
[367258893,1750720274834,-490.0,0.00022739,2]
[367258894,1750720274844,-150.0,0.00022739,2]
[367258895,1750720274853,-490.0,0.00022739,2]
[367258896,1750720274863,-1061.28,0.00022739,2]
[367258897,1750720274872,-3640.93,0.00022739,2]
[367258898,1750720274881,-713.85,0.00022739,2]
[367258899,1750720274891,-490.0,0.00022739,2]
[367258900,1750720274903,-150.0,0.00022739,2]
[367258901,1750720274913,-546.51,0.00022739,2]
[367258902,1750720274923,-150.0,0.00022739,2]
[367258903,1750720274933,-500.0,0.00022739,2]
[367258904,1750720274949,-490.0,0.00022739,2]
[367258905,1750720274958,-1131.4,0.00022739,2]
[367258906,1750720274968,-913.07,0.00022739,2]
[367258907,1750720274978,-622.0,0.00022739,2]
[367258908,1750720274988,-888.12,0.00022739,2]
[367258909,1750720274997,-964.98,0.00022739,2]
[367258910,1750720275007,-503.26,0.00022739,2]
[367258911,1750720275017,-654.36,0.00022739,2]
[367258912,1750720275027,-490.0,0.00022739,2]
[367258913,1750720275038,-917.79,0.00022739,2]
[367258914,1750720275047,-2848.4,0.00022739,2]
[367258915,1750720275057,-804.65,0.00022739,2]
[367258916,1750720275067,-595.99,0.00022739,2]
[367258917,1750720275078,-1492.92,0.00022739,2]
[367258918,1750720275088,-490.0,0.00022739,2]
[367258919,1750720275098,-1166.2,0.00022739,2]
[367258920,1750720275108,-1703.71,0.00022739,2]
[367258921,1750720275118,-827.46,0.00022739,2]
[367258922,1750720275128,-490.0,0.00022739,2]
[367258923,1750720275137,-500.0,0.00022739,2]
[367258924,1750720275147,-1312.94,0.00022739,2]
[367258925,1750720275157,-500.0,0.00022739,2]
[367258926,1750720275167,-1989.89,0.00022739,2]
[367258927,1750720275176,-490.0,0.00022739,2]
[367258928,1750720275185,-870.99,0.00022739,2]
[367258929,1750720275194,-150.0,0.00022739,2]
[367258930,1750720275204,-500.0,0.00022739,2]
[367258931,1750720275214,-965.17,0.00022739,2]
[367258932,1750720275223,-637.24,0.00022739,2]
[367258933,1750720275233,-1651.42,0.00022739,2]
[367258934,1750720275243,-500.0,0.00022739,2]
[367258935,1750720275253,-635.65,0.00022739,2]
[367258936,1750720275262,-490.0,0.00022739,2]
[367258937,1750720275272,-785.95,0.00022739,2]
[367258938,1750720275282,-674.96,0.00022739,2]
[367258939,1750720275291,-150.0,0.00022739,2]
[367258940,1750720275301,-1518.67,0.00022739,2]
[367258941,1750720275393,-500.0,0.00022739,2]
[367258942,1750720275405,-625.98,0.00022739,2]
[367258943,1750720275414,-490.0,0.00022739,2]
[367258944,1750720275424,-3091.78,0.00022739,2]
[367258945,1750720275433,-500.0,0.00022739,2]
[367258946,1750720275443,-1403.62,0.00022739,2]
[367258947,1750720275452,-588.85,0.00022739,2]
[367258948,1750720275462,-150.0,0.00022739,2]
[367258949,1750720275471,-792.11,0.00022739,2]
[367258950,1750720275480,-1521.33,0.00022739,2]
[367258951,1750720275490,-736.24,0.00022739,2]
[367258952,1750720275500,-656.6,0.00022739,2]
[367258953,1750720275509,-150.0,0.00022739,2]
[367258954,1750720275519,-608.22,0.00022739,2]
[367258955,1750720275528,-500.0,0.00022739,2]
[367258956,1750720275538,-490.0,0.00022739,2]
[367258957,1750720275547,-490.0,0.00022739,2]
[367258958,1750720275556,-490.0,0.00022739,2]
[367258959,1750720275566,-500.0,0.00022739,2]
[367258960,1750720275576,-150.0,0.00022739,2]
[367258961,1750720275585,-2536.56,0.00022739,2]
[367258962,1750720275595,-552.96,0.00022739,2]
[367258963,1750720275605,-490.0,0.00022739,2]
[367258964,1750720275615,-150.0,0.00022739,2]
[367258965,1750720275625,-490.0,0.00022739,2]
[367258966,1750720275635,-490.0,0.00022739,2]
[367258967,1750720275645,-954.36,0.00022739,2]
[367258968,1750720275655,-3653.75,0.00022739,2]
[367258969,1750720275665,-150.0,0.00022739,2]
[367258970,1750720275675,-1770.55,0.00022739,2]
[367258971,1750720275685,-490.0,0.00022739,2]
[367258972,1750720275695,-490.0,0.00022739,2]
[367258973,1750720275706,-150.0,0.00022739,2]
[367258974,1750720275717,-1766.86,0.00022739,2]
[367258975,1750720275726,-6832.89,0.00022739,2]
[367258976,1750720275736,-490.0,0.00022739,2]
[367258977,1750720275745,-1012.51,0.00022739,2]
[367258978,1750720275754,-1301.41,0.00022739,2]
[367258979,1750720275764,-700.46,0.00022739,2]
[367258980,1750720275774,-575.02,0.00022739,2]
[367258981,1750720275785,-99267.01,0.00022739,2]
[367258982,1750720275795,-490.0,0.00022739,2]
[367258983,1750720275804,-3999.93,0.00022739,2]
[367258984,1750720275814,-1251.72,0.00022739,2]
[367258985,1750720275824,-490.0,0.00022739,2]
[367258986,1750720275833,-690.99,0.00022739,2]
[367258987,1750720275844,-490.0,0.00022739,2]
[367258988,1750720275854,-1289.5,0.00022739,2]
[367258989,1750720275863,-674.55,0.00022739,2]
[367258990,1750720275873,-892.01,0.00022739,2]
[367258991,1750720275883,-586.68,0.00022739,2]
[367258992,1750720275892,-1186.95,0.00022739,2]
[367258993,1750720275902,-628.08,0.00022739,2]
[367258994,1750720275912,-491.89,0.00022739,2]
[367258995,1750720275921,-1120.03,0.00022739,2]
[367258996,1750720275931,-897.51,0.00022739,2]
[367258997,1750720275945,-1083.77,0.00022739,2]
[367258998,1750720275955,-490.0,0.00022739,2]
[367258999,1750720275964,-641.31,0.00022739,2]
[367259000,1750720275974,-1068.09,0.00022739,2]
[367259001,1750720275984,-1194.36,0.00022739,2]
[367259002,1750720275993,-490.0,0.00022739,2]
[367259003,1750720276003,-767.69,0.00022739,2]
[367259004,1750720276012,-575.13,0.00022739,2]
[367259005,1750720276022,-2490.5,0.00022739,2]
[367259006,1750720276031,-1497.6,0.00022739,2]
[367259007,1750720276041,-566.87,0.00022739,2]
[367259008,1750720276051,-533.37,0.00022739,2]
[367259009,1750720276060,-830.3,0.00022739,2]
[367259010,1750720276070,-1805.1,0.00022739,2]
[367259011,1750720276079,-776.33,0.00022739,2]
[367259012,1750720276088,-811.01,0.00022739,2]
[367259013,1750720276098,-12231.5,0.00022739,2]
[367259014,1750720276107,-895.61,0.00022739,2]
[367259015,1750720276116,-1834.68,0.00022739,2]
[367259016,1750720276125,-604.76,0.00022739,2]
[367259017,1750720276134,-942.76,0.00022739,2]
[367259018,1750720276144,-9723.96,0.00022739,2]
[367259019,1750720276154,-490.0,0.00022739,2]
[367259020,1750720276163,-490.0,0.00022739,2]
[367259021,1750720276172,-3237.93,0.00022739,2]
[367259022,1750720276181,-783.99,0.00022739,2]
[367259023,1750720276191,-4513.59,0.00022739,2]
[367259024,1750720276200,-490.0,0.00022739,2]
[367259025,1750720276209,-1103.03,0.00022739,2]
[367259026,1750720276219,-535.9,0.00022739,2]
[367259027,1750720276228,-490.0,0.00022739,2]
[367259028,1750720276238,-1066.43,0.00022739,2]
[367259029,1750720276247,-490.0,0.00022739,2]
[367259030,1750720276256,-907.6,0.00022739,2]
[367259031,1750720276265,-947.45,0.00022739,2]
[367259032,1750720276275,-221.25044,0.00022739,7]
[367259033,1750720276286,-1324.93,0.00022739,2]
[367259034,1750720276295,-1319.89,0.00022739,2]
[367259035,1750720276305,-221.25044,0.00022739,7]
[367259036,1750720276314,-490.0,0.00022739,2]
[367259037,1750720276323,-221.25044,0.00022739,7]
[367259038,1750720276333,-221.250446,0.00022739,7]
[367259039,1750720276342,-4371.79,0.00022739,2]
[367259040,1750720276352,-1113.07,0.00022739,2]
[367259041,1750720276361,-490.0,0.00022739,2]
[367259042,1750720276371,-490.0,0.00022739,2]
[367259043,1750720276380,-744.09,0.00022739,2]
[367259044,1750720276389,-490.0,0.00022739,2]
[367259045,1750720276401,-630.35,0.00022739,2]
[367259046,1750720276411,-883.29,0.00022739,2]
[367259047,1750720276421,-898.49,0.00022739,2]
[367259048,1750720276430,-1761.89,0.00022739,2]
[367259049,1750720276440,-994.28,0.00022739,2]
[367259050,1750720276449,-3421.79,0.00022739,2]
[367259051,1750720276459,-2038.68,0.00022739,2]
[367259052,1750720276468,-943.38,0.00022739,2]
[367259053,1750720276478,-490.0,0.00022739,2]
[367259054,1750720276487,-490.0,0.00022739,2]